bitfinex-derivatives/quotes_BNBF0:USTF0_20251220
["timestamp","ask_amount","ask_price","bid_price","bid_amount"]
[1766198088390,0.20328765,856.31,855.24,0.86823672]
[1766198089189,0.20328765,856.31,855.25,0.86823672]
[1766198090090,0.20328765,856.31,855.27,0.86823672]
[1766198091192,0.20328765,856.31,855.29,0.86823672]
[1766198092390,0.20328765,856.31,855.31,0.86823672]
[1766198093390,0.20328765,856.31,855.32,0.86823672]
[1766198094095,0.20328765,856.31,855.16,5.51452399]
[1766198094096,0.20328765,856.31,855.34,0.86823672]
[1766198095090,0.20328765,856.31,855.36,0.86823672]
[1766198096096,0.20328765,856.31,855.38,0.86823672]
[1766198097089,0.20328765,856.31,855.4,0.86823672]
[1766198098193,0.20328765,856.31,855.42,0.86823672]
[1766198099095,0.20328765,856.31,855.45,0.86823672]
[1766198101498,0.20328765,856.31,855.47,0.86823672]
[1766198102397,0.20328765,856.31,855.48,0.86823672]
[1766198103197,0.20328765,856.31,855.49,0.86823672]
[1766198104101,0.20328765,856.31,855.5,0.86823672]
[1766198106799,0.20328765,856.31,855.46,0.86823672]
[1766198107304,0.20328765,856.31,855.47,0.86823672]
[1766198108400,0.20328765,856.31,855.52,0.86823672]
[1766198109205,0.20328765,856.31,855.53,0.86823672]
[1766198110502,0.20328765,856.31,855.54,0.86823672]
[1766198112202,0.20328765,856.31,855.55,0.86823672]
[1766198119206,0.20328765,856.31,855.63,0.86823672]
[1766198119410,0.20328765,856.31,855.62,0.86823672]
[1766198122413,0.20328765,856.31,855.61,0.86823672]
[1766198125318,0.20328765,856.31,855.6,0.86823672]
[1766198125620,0.20328765,856.31,855.61,0.86823672]
[1766198126221,0.20328765,856.31,855.6,0.86823672]
[1766198131122,0.20328765,856.31,855.64,0.86823672]
[1766198131323,0.20328765,856.31,855.63,0.86823672]
[1766198134331,0.20328765,856.31,855.62,0.86823672]
[1766198136527,0.20328765,856.31,855.6,0.86823672]
[1766198137334,0.20328765,856.31,855.59,0.86823672]
[1766198138531,0.20328765,856.31,855.63,0.86823672]
[1766198139834,0.20328765,856.31,855.64,0.86823672]
[1766198140334,0.20328765,856.31,855.63,0.86823672]
[1766198142235,0.20328765,856.31,855.62,0.86823672]
[1766198145740,1.17107537,856.67,855.62,0.86823672]
[1766198145938,1.17107537,856.79,855.74,0.86823672]
[1766198146137,0.20321999,856.51,855.74,0.86823672]
[1766198146338,0.20321999,856.51,855.73,0.86823672]
[1766198146541,0.20321999,856.51,855.75,0.86823672]
[1766198147344,0.20321999,856.51,855.74,0.86823672]
[1766198148444,0.20321999,856.51,855.73,0.86823672]
[1766198149347,0.20321999,856.51,855.72,0.86823672]
[1766198151348,0.20321999,856.51,855.71,0.86823672]
[1766198152345,0.20321999,856.51,855.7,0.86823672]
[1766198155444,0.20321999,856.51,855.69,0.86823672]
[1766198158349,0.20321999,856.51,855.68,0.86823672]
[1766198158946,0.20321999,856.51,855.69,0.86823672]
[1766198159247,0.20321999,856.51,855.68,0.86823672]
[1766198164251,0.20321999,856.51,855.65,0.86823672]
[1766198168352,0.20321999,856.51,855.52,4.842456]
[1766198168353,0.20321999,856.51,855.66,0.86823672]
[1766198171352,0.20321999,856.51,855.67,0.86823672]
[1766198174360,0.20321999,856.51,855.68,0.86823672]
[1766198177359,0.20321999,856.51,855.69,0.86823672]
[1766198179363,0.20321999,856.51,855.7,0.86823672]
[1766198184468,0.20321999,856.51,855.71,0.86823672]
[1766198187274,0.20321999,856.51,855.72,0.86823672]
[1766198187672,0.20321999,856.51,855.74,0.86823672]
[1766198189280,0.20321999,856.51,855.75,0.86823672]
[1766198192380,0.20321999,856.51,855.76,0.86823672]
[1766198194385,0.20321999,856.51,855.77,0.86823672]
[1766198196586,0.20321999,856.51,855.78,0.86823672]
[1766198198388,0.20321999,856.51,855.79,0.86823672]
[1766198200487,0.20321999,856.51,855.8,0.86823672]
[1766198203394,0.20321999,856.51,855.81,0.86823672]
[1766198204093,0.20321999,856.51,855.68,0.86823672]
[1766198204895,0.20321999,856.51,855.63,0.86823672]
[1766198205091,0.20321999,856.51,855.61,0.86823672]
[1766198205297,0.20321999,856.51,855.6,0.86823672]
[1766198206196,0.20321999,856.51,855.59,0.86823672]
[1766198206497,1.37429536,856.51,855.51,0.86823672]
[1766198207393,0.20321999,856.51,855.5,0.86823672]
[1766198208197,0.20321999,856.51,855.48,0.86823672]
[1766198209293,0.20321999,856.51,855.47,0.86823672]
[1766198209793,0.20321999,856.51,855.45,0.86823672]
[1766198210198,1.37429536,856.51,855.43,0.8698569]
[1766198210400,1.17107537,856.45,855.33,0.8698569]
[1766198211299,1.17107537,856.47,855.32,0.8698569]
[1766198212399,1.17107537,856.48,855.3,0.8698569]
[1766198213301,1.17107537,856.5,855.29,0.8698569]
[1766198214203,1.17107537,856.51,855.28,0.8698569]
[1766198215299,1.17107537,856.52,855.27,0.8698569]
[1766198216302,1.17107537,856.52,854.41,0.01048559]
[1766198216303,1.17107537,856.53,855.26,0.8698569]
[1766198216904,0.20331378,856.22,855.26,0.8698569]
[1766198217203,0.20331378,856.22,855.25,0.8698569]
[1766198218303,0.20331378,856.22,855.24,0.8698569]
[1766198219302,0.20331378,856.22,855.23,0.8698569]
[1766198222205,0.20331378,856.22,855.22,0.8698569]
[1766198224203,0.20331378,856.22,855.21,0.8698569]
[1766198226207,0.20331378,856.22,855.2,0.8698569]
[1766198229205,0.20331378,856.22,855.19,0.8698569]
[1766198232012,0.20331378,856.22,855.2,0.8698569]
[1766198233507,0.20331378,856.22,855.19,0.8698569]
[1766198240314,0.20331378,856.22,855.2,0.8698569]
[1766198240512,0.20331378,856.22,855.19,0.86622655]
[1766198240813,0.20331378,856.22,855.25,0.86622655]
[1766198241810,0.20331378,856.22,855.26,0.86622655]
[1766198245111,0.20331378,856.22,855.27,0.86622655]
[1766198248215,0.20331378,856.22,855.28,0.86622655]
[1766198250216,0.20331378,856.22,855.29,0.86622655]
[1766198250716,0.20331378,856.22,855.32,0.86622655]
[1766198251420,0.20331378,856.22,855.33,0.86622655]
[1766198253221,0.20331378,856.22,855.34,0.86622655]
[1766198254421,0.20331378,856.22,855.35,0.86622655]
[1766198255322,0.20331378,856.22,855.36,0.86622655]
[1766198257322,0.20331378,856.22,855.21,1.1687246]
[1766198257323,0.20331378,856.22,855.37,0.86622655]
[1766198258124,0.20331378,856.22,855.38,0.86622655]
[1766198258325,0.20331378,856.22,855.39,0.86622655]
[1766198259228,0.20331378,856.22,855.4,0.86622655]
[1766198260430,0.20331378,856.22,855.41,0.86622655]
[1766198261226,0.20331378,856.22,855.43,0.86622655]
[1766198262327,0.20331378,856.22,855.44,0.86622655]
[1766198263331,0.20331378,856.22,855.47,0.86622655]
[1766198264435,0.20331378,856.22,855.48,0.86622655]
[1766198267238,0.20331378,856.22,855.49,0.86622655]
[1766198268139,0.20331378,856.22,855.48,0.86622655]
[1766198268337,0.20331378,856.22,855.49,0.86622655]
[1766198276543,0.20331378,856.22,855.47,0.86622655]
[1766198285454,0.20331378,856.22,855.48,0.86622655]
[1766198286855,0.20331378,856.22,855.5,0.86622655]
[1766198290956,0.20331378,856.22,855.41,0.86622655]
[1766198303264,0.20331378,856.22,855.4,0.86622655]
[1766198310275,1.37438915,856.22,855.18,0.86622655]
[1766198311370,1.37438915,856.22,855.17,0.86622655]
[1766198311371,0.20331378,856.22,855.17,0.86622655]
[1766198312376,0.20331378,856.22,855.15,0.86622655]
[1766198313274,0.20331378,856.22,855.14,0.86622655]
[1766198315172,0.20331378,856.22,855.13,0.86622655]
[1766198316277,0.20331378,856.22,855.12,0.86622655]
[1766198316576,0.20331378,856.22,855.11,0.86622655]
[1766198318379,0.20331378,856.22,855.1,0.86622655]
[1766198318676,0.20331378,856.22,855.15,0.86622655]
[1766198322181,0.20331378,856.22,854.99,1.1687246]
[1766198322182,0.20331378,856.22,855.14,0.86622655]
[1766198326692,0.20331378,856.22,855.12,0.86622655]
[1766198336202,0.20331378,856.22,855.13,0.86622655]
[1766198336699,0.20331378,856.22,854.9,4.41059317]
[1766198336700,0.20331378,856.22,855.14,0.86622655]
[1766198337503,0.20331378,856.22,855.15,0.86622655]
[1766198343302,0.20331378,856.22,855.16,0.86622655]
[1766198346312,0.20331378,856.22,855.17,0.86622655]
[1766198347412,0.20331378,856.22,855.18,0.86622655]
[1766198349313,0.20331378,856.22,855.19,0.86622655]
[1766198352313,0.20331378,856.22,855.2,0.86622655]
[1766198356318,0.20331378,856.22,855.21,0.86622655]
[1766198356722,0.20331378,856.22,855.26,0.86622655]
[1766198357421,0.20331378,856.22,855.27,0.86622655]
[1766198357924,0.20331378,856.22,855.26,0.86622655]
[1766198358122,0.20331378,856.22,855.21,0.86622655]
[1766198358825,0.20331378,856.22,855.2,0.86622655]
[1766198360420,0.20331378,856.22,855.21,0.86622655]
[1766198363327,0.20331378,856.22,855.22,0.86622655]
[1766198363828,0.20331378,856.22,855.25,0.86622655]
[1766198364023,0.20331378,856.22,855.28,0.86622655]
[1766198365325,0.20331378,856.22,855.29,0.86622655]
[1766198366630,0.20331378,856.22,855.26,0.86622655]
[1766198367126,0.20331378,856.22,855.31,0.86622655]
[1766198368427,0.20331378,856.22,855.32,0.86622655]
[1766198369333,0.20331378,856.22,855.37,0.86622655]
[1766198370132,0.20331378,856.22,855.36,0.86622655]
[1766198372236,0.20331378,856.22,855.35,0.86622655]
[1766198375336,0.20331378,856.22,855.34,0.86622655]
[1766198376840,0.20331378,856.22,855.38,0.86622655]
[1766198378245,0.20331378,856.22,855.37,0.86622655]
[1766198383245,0.20331378,856.22,855.36,0.86622655]
[1766198391157,0.20331378,856.22,855.35,0.86622655]
[1766198403262,0.20331378,856.22,855.36,0.86622655]
[1766198411163,0.20331378,856.22,855.37,0.86622655]
[1766198412362,0.20331378,856.22,855.35,0.86622655]
[1766198415265,0.20331378,856.22,855.36,0.86622655]
[1766198416969,1.17107537,856.37,855.34,0.86622655]
[1766198417169,0.20331616,856.02,855.34,0.86622655]
[1766198417369,1.17107537,856.37,855.34,0.86622655]
[1766198418265,1.17107537,856.37,855.35,0.86622655]
[1766198418667,0.20331675,856.12,855.35,0.86622655]
[1766198420269,0.20331675,856.12,855.36,0.86622655]
[1766198421373,0.20331675,856.12,855.37,0.86622655]
[1766198423173,0.20331675,856.12,855.38,0.86622655]
[1766198424177,0.20331675,856.12,855.39,0.86622655]
[1766198426178,0.20331675,856.12,855.4,0.86622655]
[1766198426778,0.20331675,856.12,855.42,0.86622655]
[1766198456893,0.20331675,856.12,855.4,0.86622655]
[1766198460699,1.17107537,856.41,855.5,0.86622655]
[1766198461002,0.20328528,856.29,855.55,0.86622655]
[1766198461199,0.20328528,856.29,855.54,0.86622655]
[1766198461397,1.17107537,856.48,855.54,0.86622655]
[1766198461697,0.20326687,856.29,855.54,0.86622655]
[1766198462300,0.20326687,856.29,855.52,0.86622655]
[1766198464299,0.20326687,856.29,855.51,0.86622655]
[1766198465306,0.20326687,856.29,855.5,0.86622655]
[1766198466904,0.20326687,856.29,855.12,4.49421723]
[1766198466905,0.20326687,856.29,855.51,0.86622655]
[1766198468309,0.20326687,856.29,855.55,0.86622655]
[1766198469307,0.20326687,856.29,855.54,0.86622655]
[1766198471312,0.20326687,856.29,855.53,0.86622655]
[1766198473310,0.20326687,856.29,855.52,0.86622655]
[1766198475414,0.20326687,856.29,855.51,0.86622655]
[1766198478418,0.20326687,856.29,855.5,0.86622655]
[1766198483325,0.20326687,856.29,855.49,0.86622655]
[1766198500332,0.20326687,856.29,855.5,0.86622655]
[1766198505335,0.20326687,856.29,855.51,0.86622655]
[1766198507933,0.20326687,856.29,855.55,0.86622655]
[1766198509439,0.20326687,856.29,855.56,0.86622655]
[1766198511339,0.20326687,856.29,855.41,1.1687246]
[1766198511340,0.20326687,856.29,855.57,0.86622655]
[1766198511942,1.17107537,856.66,855.57,0.86622655]
[1766198512140,1.17107537,856.68,855.59,0.86622655]
[1766198512442,0.20324016,856.41,855.59,0.86622655]
[1766198513344,0.20324016,856.41,855.6,0.86622655]
[1766198514844,0.20324016,856.41,855.63,0.86622655]
[1766198515445,0.20324016,856.41,855.64,0.86622655]
[1766198517049,0.20324016,856.41,855.66,0.86622655]
[1766198517246,0.20324016,856.41,855.67,0.86622655]
[1766198518350,0.20324016,856.41,855.68,0.86622655]
[1766198519250,0.20324016,856.41,855.67,0.86622655]
[1766198519450,0.20324016,856.41,855.69,0.86622655]
[1766198522154,0.20324016,856.41,855.68,0.86622655]
[1766198523854,0.20324016,856.41,855.71,0.86622655]
[1766198525255,0.20324016,856.41,855.7,0.86622655]
[1766198527362,0.20324016,856.41,855.72,0.86622655]
[1766198529161,0.20324016,856.41,855.71,0.86622655]
[1766198532264,0.20324016,856.41,855.7,0.86622655]
[1766198537365,0.20324016,856.41,855.69,0.86622655]
[1766198546868,0.20324016,856.41,855.67,0.86622655]
[1766198553379,0.20324016,856.41,855.68,0.86622655]
[1766198556877,0.20324016,856.41,855.7,0.86622655]
[1766198559383,0.20324016,856.41,855.74,0.86622655]
[1766198559581,1.17107537,856.81,855.75,0.86622655]
[1766198559780,0.20321465,856.51,855.75,0.86622655]
[1766198561280,0.20321465,856.51,855.76,0.86622655]
[1766198562281,0.20321465,856.51,855.8,0.86622655]
[1766198563990,0.20321465,856.51,855.51,4.80894725]
[1766198563991,0.20321465,856.51,855.82,0.86622655]
[1766198564785,0.20321465,856.51,855.83,0.86622655]
[1766198565086,1.17107537,856.89,855.85,0.86622655]
[1766198565285,2.91562203,857.66,855.51,4.80894725]
[1766198565286,0.2031832,856.66,855.88,0.86622655]
[1766198566090,0.2031832,856.66,855.87,0.86622655]
[1766198569190,0.2031832,856.66,855.86,0.86622655]
[1766198569390,0.2031832,856.66,855.87,0.86622655]
[1766198569990,0.2031832,856.66,855.88,0.86622655]
[1766198570291,0.2031832,856.66,855.87,0.86622655]
[1766198573188,0.2031832,856.66,855.86,0.86622655]
[1766198573492,0.2031832,856.66,855.87,0.86622655]
[1766198574192,0.2031832,856.66,855.86,0.86622655]
[1766198580192,0.2031832,856.66,855.85,0.86622655]
[1766198586894,0.2031832,856.66,855.69,1.1687246]
[1766198586895,0.2031832,856.66,855.86,0.86622655]
[1766198590199,0.2031832,856.66,855.85,0.86622655]
[1766198595503,1.17107537,857.1,855.85,0.86622655]
[1766198595705,1.17107537,857.1,855.99,0.86622655]
[1766198596005,0.20315829,856.8,856.0,0.86622655]
[1766198596207,0.20315829,856.8,856.01,0.86622655]
[1766198597208,0.20315829,856.8,856.0,0.86622655]
[1766198598408,0.20315829,856.8,855.99,0.86622655]
[1766198600208,0.20315829,856.8,855.98,0.86622655]
[1766198601506,1.17107537,857.22,856.03,0.86622655]
[1766198601806,0.20312213,856.97,856.13,0.86622655]
[1766198602209,0.20312213,856.97,856.12,0.86622655]
[1766198602405,0.20312213,856.97,856.24,0.86622655]
[1766198603209,0.20312213,856.97,856.22,0.86622655]
[1766198604210,0.20312213,856.97,856.2,0.86622655]
[1766198605109,0.20312213,856.97,856.19,0.86622655]
[1766198606109,0.20312213,856.97,856.17,0.86622655]
[1766198606910,0.20312213,856.97,856.18,0.86622655]
[1766198607309,0.20312213,856.97,856.12,0.86622655]
[1766198609206,0.20312213,856.97,855.96,1.1687246]
[1766198609207,0.20312213,856.97,856.11,0.86622655]
[1766198611312,0.20312213,856.97,855.95,1.1687246]
[1766198611313,0.20312213,856.97,856.1,0.86622655]
[1766198611608,1.17107537,857.53,856.1,0.86622655]
[1766198612013,0.20307768,857.04,856.1,0.86622655]
[1766198612208,1.17107537,857.54,856.1,0.86622655]
[1766198612512,0.20307768,857.04,856.1,0.86622655]
[1766198612713,1.17107537,857.54,856.1,0.86622655]
[1766198613013,0.20307708,857.04,856.1,0.86622655]
[1766198613214,1.17107537,857.56,856.11,0.86622655]
[1766198613609,0.20307708,857.04,856.11,0.86622655]
[1766198613814,1.17107537,857.56,856.11,0.86622655]
[1766198615016,0.20307531,857.2,856.11,0.86622655]
[1766198616818,0.20307531,857.2,856.1,0.86622655]
[1766198617014,0.20307531,857.2,856.12,0.86622655]
[1766198620118,0.20307531,857.2,856.11,0.86622655]
[1766198626922,0.20307531,857.2,856.12,0.86622655]
[1766198633532,0.20307531,857.2,856.23,0.86622655]
[1766198634529,0.20307531,857.2,856.3,0.86622655]
[1766198637237,0.20307531,857.2,856.29,0.86622655]
[1766198639137,0.20307531,857.2,856.3,0.86622655]
[1766198646140,0.20307531,857.2,856.31,0.86622655]
[1766198648245,0.20307531,857.2,856.32,0.86622655]
[1766198649345,0.20307531,857.2,856.33,0.86622655]
[1766198649743,0.20307531,857.2,856.33,6.38113386]
[1766198651147,0.20307531,857.2,856.34,0.86622655]
[1766198652250,0.20307531,857.2,856.35,0.86622655]
[1766198653145,0.20307531,857.2,856.39,0.86622655]
[1766198654349,0.20307531,857.2,856.41,0.86622655]
[1766198655253,0.20307531,857.2,856.42,0.86622655]
[1766198656252,0.20307531,857.2,856.43,0.86622655]
[1766198657349,0.20307531,857.2,856.44,0.86622655]
[1766198659250,0.20307531,857.2,856.45,0.86622655]
[1766198660259,0.20307531,857.2,856.46,0.86622655]
[1766198661266,0.20307531,857.2,856.47,0.86622655]
[1766198662361,0.20307531,857.2,856.48,0.86622655]
[1766198665162,0.20307531,857.2,856.47,0.86622655]
[1766198666563,0.20307531,857.2,856.48,0.86622655]
[1766198673176,0.20307531,857.2,856.49,0.86622655]
[1766198676481,0.20307531,857.2,856.5,0.86622655]
[1766198680185,0.20307531,857.2,856.51,0.86622655]
[1766198683185,0.20307531,857.2,856.52,0.86622655]
[1766198685182,0.20307531,857.2,856.53,0.86622655]
[1766198686389,1.17107537,857.69,856.53,0.86622655]
[1766198686585,0.20299949,857.45,856.82,0.86622655]
[1766198686785,0.20299949,857.45,856.86,0.86622655]
[1766198686988,1.17107537,857.96,856.86,0.86622655]
[1766198687285,0.20294089,857.6,856.84,0.86622655]
[1766198687486,1.17107537,857.98,856.84,0.86622655]
[1766198687685,1.17107537,857.98,856.85,0.86622655]
[1766198688189,1.17107537,857.99,856.83,0.86622655]
[1766198688588,0.20294089,857.71,856.83,0.86622655]
[1766198689290,0.20294089,857.71,856.82,0.86622655]
[1766198690488,0.20294089,857.71,856.81,0.86622655]
[1766198692192,0.20294089,857.71,856.8,0.86622655]
[1766198693693,0.20294089,857.71,856.78,0.86622655]
[1766198693890,0.20294089,857.71,856.76,0.86622655]
[1766198694293,0.20294089,857.71,856.75,0.86622655]
[1766198696296,0.20294089,857.71,856.59,1.1687246]
[1766198696297,0.20294089,857.71,856.74,0.86622655]
[1766198697194,0.20294089,857.71,856.73,0.86622655]
[1766198699096,0.20294089,857.71,856.63,0.86622655]
[1766198700696,0.20294089,857.71,856.57,0.86622655]
[1766198701599,0.20294089,857.71,856.42,1.1687246]
[1766198701799,0.20294089,857.71,856.57,0.86379322]
[1766198705397,0.20294089,857.71,856.58,0.86379322]
[1766198706197,0.20294089,857.71,856.57,0.86379322]
[1766198706393,0.20294089,857.71,856.58,0.86379322]
[1766198707194,1.37401626,857.71,856.43,0.86379322]
[1766198707495,1.17107537,857.64,856.37,0.86379322]
[1766198707698,1.17107537,857.61,856.34,0.86379322]
[1766198709003,1.17107537,857.59,856.33,5.51490731]
[1766198709403,1.17107537,857.54,856.33,5.51490731]
[1766198709603,1.17107537,857.52,856.33,5.51490731]
[1766198710300,1.17107537,857.53,856.33,5.51490731]
[1766198712403,1.17107537,857.54,856.33,5.51490731]
[1766198714500,1.17107537,857.55,856.33,5.51490731]
[1766198716403,1.17107537,857.56,856.33,5.51490731]
[1766198718509,1.17107537,857.57,856.33,5.51490731]
[1766198720407,1.17107537,857.58,856.18,0.86379322]
[1766198722404,1.17107537,857.58,856.17,0.86379322]
[1766198723305,1.17107537,857.59,856.17,0.86379322]
[1766198725209,1.17107537,857.59,856.16,0.86379322]
[1766198726314,1.17107537,857.6,856.16,0.86379322]
[1766198728115,1.17107537,857.6,856.15,0.86379322]
[1766198729113,1.17107537,857.61,856.15,0.86379322]
[1766198732415,1.17107537,857.61,856.14,0.86379322]
[1766198733117,1.17107537,857.62,856.14,0.86379322]
[1766198736113,1.17107537,857.62,856.13,0.86379322]
[1766198737016,1.17107537,857.57,856.08,0.86379322]
[1766198737318,1.17107537,857.58,856.08,0.86379322]
[1766198737518,1.17107537,857.57,856.08,0.86379322]
[1766198738319,1.17107537,857.58,856.08,0.86379322]
[1766198739218,1.17107537,857.58,856.07,0.86379322]
[1766198739521,1.17107537,857.58,856.08,0.86379322]
[1766198740221,1.17107537,857.58,856.07,0.86379322]
[1766198742818,1.17107537,857.57,856.06,0.86379322]
[1766198743223,1.17107537,857.58,856.06,0.86379322]
[1766198745226,1.17107537,857.58,856.05,0.86379322]
[1766198745428,1.17107537,857.58,856.06,0.86379322]
[1766198746224,1.17107537,857.58,856.05,0.86379322]
[1766198747028,1.17107537,857.63,856.1,0.86379322]
[1766198747228,1.17107537,857.62,856.11,0.86379322]
[1766198748126,1.17107537,857.54,856.03,0.86379322]
[1766198748329,1.17107537,857.5,856.01,0.86379322]
[1766198748625,1.17107537,857.47,855.98,5.95097931]
[1766198749329,1.17107537,857.46,855.98,5.95097931]
[1766198750226,1.17107537,857.45,855.98,6.81477253]
[1766198751126,1.17107537,857.36,855.98,5.95097931]
[1766198751328,1.17107537,857.37,855.98,5.95097931]
[1766198752231,1.17107537,857.36,855.98,5.95097931]
[1766198753327,1.17107537,857.35,855.98,5.95097931]
[1766198753532,1.17107537,857.36,855.98,5.95097931]
[1766198754228,1.17107537,857.34,855.98,5.95097931]
[1766198754429,1.17107537,857.35,855.98,5.95097931]
[1766198755133,1.17107537,857.34,855.98,5.95097931]
[1766198756129,1.17107537,857.33,855.98,5.95097931]
[1766198756633,1.17107537,857.3,855.98,5.95097931]
[1766198757230,1.17107537,857.29,855.98,5.95097931]
[1766198758334,1.17107537,857.28,855.98,5.95097931]
[1766198759133,1.17107537,857.27,855.98,5.95097931]
[1766198761138,1.17107537,857.28,855.98,5.95097931]
[1766198761338,1.17107537,857.27,855.98,5.95097931]
[1766198762335,1.17107537,857.26,855.98,5.95097931]
[1766198764343,1.17107537,857.25,855.98,5.95097931]
[1766198765535,1.17107537,857.24,855.98,5.95097931]
[1766198766340,1.17107537,857.23,855.99,0.86379322]
[1766198766837,1.17107537,857.23,855.98,6.81477253]
[1766198767438,1.17107537,857.22,855.99,0.86379322]
[1766198768137,1.17107537,857.22,855.98,6.81477253]
[1766198768340,1.17107537,857.22,855.99,0.86379322]
[1766198769142,1.17107537,857.22,855.98,6.81477253]
[1766198769441,1.17107537,857.15,855.98,5.95097931]
[1766198769641,0.20294089,857.71,855.98,5.95097931]
[1766198769642,1.17107537,857.13,855.98,5.95097931]
[1766198769841,1.17107537,857.1,855.98,5.95097931]
[1766198770041,1.17107537,857.04,855.98,5.95097931]
[1766198770242,1.17107537,857.06,855.98,5.95097931]
[1766198771238,1.17107537,857.06,855.78,0.86379322]
[1766198772142,1.17107537,856.98,855.68,0.86379322]
[1766198772340,1.17107537,857.04,855.73,0.86379322]
[1766198773238,1.17107537,857.05,855.72,0.86379322]
[1766198774344,1.17107537,857.06,855.71,0.86379322]
[1766198775345,1.17107537,857.07,855.7,0.86379322]
[1766198776141,1.17107537,857.07,855.69,0.86379322]
[1766198776443,1.17107537,857.08,855.69,0.86379322]
[1766198777045,1.17107537,857.07,855.69,0.86379322]
[1766198777246,1.17107537,857.07,855.68,0.86379322]
[1766198778245,1.17107537,857.08,855.67,0.86379322]
[1766198779244,1.17107537,857.09,855.67,0.86379322]
[1766198779943,1.17107537,857.09,855.51,1.1687246]
[1766198779944,1.17107537,857.08,855.66,0.86379322]
[1766198780247,1.17107537,857.08,855.65,0.86379322]
[1766198781147,1.17107537,857.09,855.65,0.86379322]
[1766198782149,1.17107537,857.09,855.64,0.86379322]
[1766198783148,1.17107537,857.1,855.64,0.86379322]
[1766198783346,1.17107537,857.09,855.64,0.86379322]
[1766198784345,1.17107537,857.1,855.64,0.86379322]
[1766198785044,1.17107537,857.1,855.48,1.1687246]
[1766198785045,1.17107537,857.1,855.63,0.86379322]
[1766198786550,1.17107537,857.12,855.65,0.86379322]
[1766198787154,1.17107537,857.13,855.66,0.86379322]
[1766198788055,1.17107537,857.21,855.74,0.86379322]
[1766198789452,1.17107537,857.2,855.74,0.86379322]
[1766198791157,1.17107537,857.2,855.75,0.86379322]
[1766198792456,1.17107537,857.19,855.75,0.86379322]
[1766198793258,1.17107537,857.2,855.76,0.86379322]
[1766198794256,1.17107537,857.2,855.77,0.86379322]
[1766198795061,1.17107537,857.19,855.77,0.86379322]
[1766198796161,1.17107537,857.19,855.78,0.86379322]
[1766198796361,1.17107537,857.18,855.78,0.86379322]
[1766198797956,1.17107537,857.18,855.79,0.86379322]
[1766198798358,1.17107537,857.17,855.79,0.86379322]
[1766198799465,1.17107537,857.16,855.8,0.86379322]
[1766198800466,1.17107537,857.16,855.81,0.86379322]
[1766198800667,1.17107537,857.24,855.89,0.86379322]
[1766198801265,1.17107537,857.24,855.9,0.86379322]
[1766198801966,1.17107537,857.26,855.93,0.86379322]
[1766198802367,1.17107537,857.48,856.16,0.86379322]
[1766198804369,1.17107537,857.48,856.01,7.60752424]
[1766198804370,1.17107537,857.48,856.17,0.86379322]
[1766198805270,1.17107537,857.48,856.16,0.86379322]
[1766198805472,1.17107537,857.47,856.17,0.86379322]
[1766198806173,1.17107537,857.48,856.16,0.86379322]
[1766198806468,1.17107537,857.47,856.17,0.86379322]
[1766198807174,1.17107537,857.45,856.14,0.86379322]
[1766198807372,1.17107537,857.44,856.15,0.86379322]
[1766198808269,1.17107537,857.45,856.14,0.86379322]
[1766198808571,1.17107537,857.45,856.15,0.86379322]
[1766198809169,1.17107537,857.45,856.14,0.86379322]
[1766198810073,1.17107537,857.46,856.14,0.86379322]
[1766198811269,1.17107537,857.46,856.13,0.86379322]
[1766198812277,1.17107537,857.47,856.13,0.86379322]
[1766198813073,1.17107537,857.47,856.12,0.86379322]
[1766198814172,1.17107537,857.48,856.12,0.86379322]
[1766198815177,1.17107537,857.48,856.11,0.86379322]
[1766198815377,1.17107537,857.49,856.11,0.86439532]
[1766198817273,1.17107537,857.52,856.13,0.86439532]
[1766198818176,1.17107537,857.52,856.12,0.86439532]
[1766198818473,1.17107537,857.53,856.12,0.86439532]
[1766198820076,1.17107537,857.53,856.11,0.86439532]
[1766198821278,1.17107537,857.38,856.01,6.43879964]
[1766198822678,1.17107537,857.36,856.01,6.43879964]
[1766198824283,1.17107537,857.35,856.01,6.43879964]
[1766198826986,1.17107537,857.34,856.01,6.43879964]
[1766198828081,1.17107537,857.32,856.01,6.43879964]
[1766198829186,1.17107537,857.33,856.01,6.43879964]
[1766198829486,1.17107537,857.32,856.01,6.43879964]
[1766198833389,1.17107537,857.31,856.01,6.43879964]
[1766198836297,1.75661306,857.46,856.01,6.43879964]
[1766198836298,1.17107537,857.3,856.01,6.43879964]
[1766198837098,1.17107537,857.31,856.01,6.43879964]
[1766198838900,1.17107537,857.32,856.01,6.43879964]
[1766198839099,1.17107537,857.31,856.01,6.43879964]
[1766198841200,1.17107537,857.3,856.01,6.43879964]
[1766198843100,1.17107537,857.29,856.01,6.43879964]
[1766198844298,1.17107537,857.28,856.01,6.43879964]
[1766198846206,1.17107537,857.27,856.01,6.43879964]
[1766198847206,1.17107537,857.26,856.01,6.43879964]
[1766198848207,1.17107537,857.26,856.01,7.30319496]
[1766198850106,1.17107537,857.25,856.01,7.30319496]
[1766198851206,1.17107537,857.25,856.02,0.86439532]
[1766198852210,1.17107537,857.24,856.02,0.86439532]
[1766198853106,1.17107537,857.24,856.03,0.86439532]
[1766198855313,1.17107537,857.23,856.04,0.86439532]
[1766198857207,1.17107537,857.22,856.04,0.86439532]
[1766198858211,1.17107537,857.21,856.05,0.86439532]